bitfinex-derivatives/quotes_BTCF0:USTF0_20240925
["timestamp","ask_amount","ask_price","bid_price","bid_amount"]
[1727282803525,0.16,63618.0,63607.0,0.52395821]
[1727282803526,0.16,63613.0,63607.0,0.00542]
[1727282803732,0.599402,63608.0,63607.0,0.00092]
[1727282803945,0.599402,63608.0,63605.0,0.078605]
[1727282804127,0.425402,63608.0,63605.0,0.078605]
[1727282804328,0.078603,63607.0,63601.0,0.01105647]
[1727282804530,0.078603,63607.0,63601.0,0.15719]
[1727282804840,0.3468,63608.0,63601.0,0.23858]
[1727282805024,0.3468,63608.0,63602.0,0.07858]
[1727282805840,0.001,63607.0,63602.0,0.07858]
[1727282806237,0.3478,63608.0,63604.0,0.078607]
[1727282806436,0.3488,63608.0,63604.0,0.078607]
[1727282807134,0.3488,63608.0,63605.0,0.078605]
[1727282807326,0.3488,63608.0,63607.0,0.078603]
[1727282807528,0.002,63608.0,63607.0,0.078603]
[1727282808342,0.001,63608.0,63607.0,0.078603]
[1727282808839,0.0037,63615.0,63611.0,0.078598]
[1727282809142,0.43939,63618.0,63614.0,0.078595]
[1727282809344,0.45054718,63618.0,63614.0,0.078595]
[1727282809642,0.43939,63618.0,63614.0,0.078595]
[1727282810538,0.44039,63618.0,63614.0,0.078595]
[1727282811038,0.3618,63618.0,63615.0,0.078593]
[1727282811744,0.3628,63618.0,63615.0,0.078593]
[1727282812042,0.078592,63616.0,63615.0,0.078593]
[1727282813347,0.079592,63616.0,63615.0,0.078593]
[1727282814852,0.080592,63616.0,63615.0,0.078593]
[1727282815347,0.002,63616.0,63615.0,0.078593]
[1727282815745,0.002,63616.0,63615.0,0.238593]
[1727282816051,0.002,63616.0,63615.0,0.317186]
[1727282816942,0.002,63616.0,63615.0,0.238593]
[1727282818947,0.002,63616.0,63615.0,0.317186]
[1727282819553,0.002,63616.0,63615.0,0.238593]
[1727282821153,0.002,63616.0,63615.0,0.078593]
[1727282823665,0.002,63616.0,63615.0,0.317186]
[1727282823862,0.3608,63618.0,63617.0,0.157182]
[1727282824271,0.0037,63623.0,63622.0,0.078585]
[1727282824455,0.0037,63623.0,63617.0,0.078591]
[1727282824456,0.01331778,63624.0,63623.0,0.078583]
[1727282824656,0.078579,63627.0,63625.0,0.078581]
[1727282825364,0.01586251,63626.0,63625.0,0.078581]
[1727282825962,0.01686251,63626.0,63625.0,0.078581]
[1727282826271,0.001,63626.0,63625.0,0.157162]
[1727282826466,0.002,63626.0,63625.0,0.157162]
[1727282827059,0.002,63626.0,63625.0,0.078581]
[1727282827267,0.08058,63626.0,63625.0,0.078581]
[1727282827565,0.078581,63625.0,63624.0,0.07783924]
[1727282827764,0.238581,63625.0,63623.0,0.07783924]
[1727282827965,0.078583,63623.0,63621.0,0.07783924]
[1727282828168,0.002,63626.0,63612.0,0.36172]
[1727282828169,0.235758,63621.0,63620.0,0.07783924]
[1727282828365,0.235758,63621.0,63612.0,0.0037]
[1727282828366,0.078596,63613.0,63612.0,0.0037]
[1727282828570,0.599396,63613.0,63612.0,0.06276607]
[1727282828768,0.5208,63613.0,63604.0,0.078607]
[1727282828966,0.16,63606.0,63605.0,0.10884812]
[1727282829166,0.238605,63606.0,63605.0,0.18745412]
[1727282829465,0.238605,63606.0,63605.0,0.078606]
[1727282829666,0.078607,63604.0,63601.0,0.09340708]
[1727282829872,0.078607,63604.0,63597.0,0.0311]
[1727282829873,0.16,63606.0,63605.0,0.078606]
[1727282831875,0.161,63606.0,63605.0,0.078606]
[1727282832070,0.162,63606.0,63605.0,0.078606]
[1727282833274,0.240605,63606.0,63605.0,0.078606]
[1727282835362,0.078612,63602.0,63601.0,0.07861]
[1727282835567,0.078614,63599.0,63598.0,0.078614]
[1727282835875,0.078617,63596.0,63595.0,0.00235867]
[1727282836071,0.157234,63596.0,63595.0,0.00235867]
[1727282836369,0.078628,63587.0,63586.0,0.078628]
[1727282836573,0.078633,63585.0,63584.0,0.078632]
[1727282837173,0.09213835,63585.0,63584.0,0.078632]
[1727282838274,0.078633,63585.0,63584.0,0.078632]
[1727282838678,0.3608,63587.0,63586.0,0.078629]
[1727282839373,0.439428,63587.0,63586.0,0.078629]
[1727282839968,0.440428,63587.0,63586.0,0.078629]
[1727282841570,0.001,63587.0,63586.0,0.078629]
[1727282841770,0.0037,63595.0,63594.0,0.078619]
[1727282841975,0.3608,63596.0,63595.0,0.078618]
[1727282842786,0.078614,63599.0,63598.0,0.078613]
[1727282843077,0.07861,63602.0,63599.0,0.078613]
[1727282843679,0.078616,63597.0,63596.0,0.078616]
[1727282844768,0.08097136,63600.0,63599.0,0.078613]
[1727282845378,0.00235936,63600.0,63599.0,0.078613]
[1727282846082,0.00335936,63600.0,63599.0,0.078613]
[1727282846575,0.00435936,63600.0,63599.0,0.078613]
[1727282847779,0.002,63600.0,63599.0,0.157226]
[1727282849076,0.002,63600.0,63599.0,0.078613]
[1727282850882,0.002,63600.0,63599.0,0.157226]
[1727282851372,0.002,63600.0,63599.0,0.2436213]
[1727282852187,0.002,63600.0,63599.0,0.078613]
[1727282853270,0.002,63600.0,63599.0,0.157226]
[1727282854683,0.002,63600.0,63599.0,0.078613]
[1727282855984,0.002,63600.0,63599.0,0.157226]
[1727282868988,3.027,63600.0,63599.0,0.157226]
[1727282871896,3.027,63600.0,63599.0,0.078613]
[1727282872103,3.027,63600.0,63599.0,0.157226]
[1727282872499,3.027,63600.0,63599.0,0.078613]
[1727282874298,3.027,63600.0,63599.0,0.18749802]
[1727282874701,3.027,63600.0,63599.0,0.26611102]
[1727282875095,3.027,63600.0,63599.0,0.34472402]
[1727282875302,2.20052428,63600.0,63599.0,1.78254068]
[1727282875498,2.10929828,63600.0,63599.0,2.02691744]
[1727282875808,1.34719786,63600.0,63599.0,1.91803242]
[1727282875996,0.94499738,63600.0,63599.0,1.91803242]
[1727282876195,0.77712438,63600.0,63599.0,1.99468728]
[1727282876901,0.62321038,63600.0,63599.0,1.99468728]
[1727282877101,0.48552938,63600.0,63599.0,1.83941942]
[1727282877408,0.09409724,63615.0,63614.0,0.078595]
[1727282877594,0.09409724,63615.0,63614.0,0.599395]
[1727282878305,0.09409724,63615.0,63614.0,0.60453419]
[1727282879306,0.110285,63622.0,63614.0,0.52593919]
[1727282879497,0.0303,63621.0,63614.0,0.52593919]
[1727282879804,0.0303,63621.0,63619.0,0.078588]
[1727282880203,0.078589,63619.0,63615.0,0.078592]
[1727282880397,0.0303,63621.0,63615.0,0.078592]
[1727282880597,0.0303,63621.0,63619.0,0.04691288]
[1727282880793,0.0303,63621.0,63614.0,0.3856]
[1727282880794,0.078592,63616.0,63614.0,0.3856]
[1727282880994,0.078592,63616.0,63614.0,0.3848]
[1727282881195,0.078592,63616.0,63614.0,0.3748]
[1727282881801,0.078593,63615.0,63614.0,0.3748]
[1727282882102,0.078593,63615.0,63611.0,0.43976668]
[1727282882103,0.078597,63612.0,63611.0,0.0008]
[1727282882305,0.0786,63610.0,63608.0,0.078601]
[1727282882496,0.0303,63609.0,63608.0,0.078601]
[1727282882692,0.0163,63609.0,63607.0,0.01370056]
[1727282882895,0.068602,63608.0,63607.0,0.078603]
[1727282883099,0.078604,63607.0,63603.0,0.37403395]
[1727282883299,0.064602,63608.0,63605.0,0.078605]
[1727282883502,0.1763,63609.0,63603.0,0.37403395]
[1727282883713,0.254901,63609.0,63608.0,0.014]
[1727282884607,0.333502,63609.0,63608.0,0.014]
[1727282885102,0.333502,63609.0,63607.0,0.014]
[1727282885103,0.157204,63608.0,63607.0,0.014]
[1727282885296,0.078607,63604.0,63603.0,0.3608]
[1727282885497,0.078609,63602.0,63601.0,0.00235828]
[1727282886102,0.072609,63602.0,63601.0,0.00235828]
[1727282886805,0.073609,63602.0,63601.0,0.00835828]
[1727282887395,0.16492907,63602.0,63601.0,0.00235828]
[1727282887599,0.16592907,63602.0,63601.0,0.00835828]
[1727282887803,0.16692907,63602.0,63601.0,0.00835828]
[1727282888605,1.23860907,63602.0,63601.0,0.00835828]
[1727282889006,1.23860907,63602.0,63591.0,0.0037]
[1727282889007,0.078622,63592.0,63591.0,0.0037]
[1727282889211,0.078622,63592.0,63589.0,0.18248896]
[1727282890111,0.078622,63592.0,63591.0,0.078622]
[1727282890112,0.079622,63592.0,63591.0,0.078622]
[1727282890916,0.080622,63592.0,63591.0,0.078622]
[1727282893114,0.002,63592.0,63589.0,0.16900648]
[1727282893307,0.002,63592.0,63589.0,0.24763248]
[1727282893308,0.078624,63590.0,63589.0,0.24763248]
[1727282893916,0.078624,63590.0,63589.0,0.31023728]
[1727282894115,0.078624,63590.0,63589.0,0.16900648]
[1727282894710,0.238624,63590.0,63589.0,0.16900648]
[1727282895109,0.078627,63588.0,63587.0,0.36172]
[1727282895313,0.078627,63588.0,63587.0,0.3608]
[1727282895907,0.157254,63588.0,63587.0,0.3608]
[1727282896407,0.157254,63588.0,63579.0,0.3608]
[1727282896408,0.078632,63584.0,63583.0,0.078633]
[1727282896612,0.439432,63584.0,63583.0,0.078633]
[1727282897010,0.469732,63584.0,63583.0,0.078633]
[1727282897211,0.469732,63584.0,63579.0,0.4368309]
[1727282897212,0.078637,63581.0,63580.0,0.078636]
[1727282897723,0.16,63583.0,63572.0,0.1412508]
[1727282897906,0.16,63575.0,63572.0,0.078646]
[1727282898109,0.16,63575.0,63569.0,0.07599843]
[1727282898310,0.16,63571.0,63567.0,0.00235954]
[1727282898506,0.0303,63570.0,63567.0,0.00235954]
[1727282898926,0.238651,63568.0,63567.0,0.00235954]
[1727282900222,0.25305151,63568.0,63567.0,0.00235954]
[1727282901315,0.25405151,63568.0,63567.0,0.00235954]
[1727282901713,0.25405151,63568.0,63560.0,0.3608]
[1727282901714,1.24732051,63568.0,63560.0,0.3608]
[1727282901922,0.07866,63561.0,63560.0,0.3608]
[1727282902623,0.078662,63560.0,63558.0,0.078663]
[1727282903013,0.078662,63560.0,63559.0,0.078663]
[1727282904814,0.079662,63560.0,63559.0,0.078663]
[1727282905326,0.080662,63560.0,63559.0,0.078663]
[1727282906927,0.002,63560.0,63559.0,0.238663]
[1727282907824,0.002,63560.0,63559.0,0.078663]
[1727282909013,0.002,63560.0,63559.0,0.238663]
[1727282911118,0.002,63560.0,63559.0,0.078663]
[1727282911316,0.080661,63560.0,63559.0,0.078663]
[1727282915321,0.080661,63560.0,63556.0,0.078665]
[1727282915322,0.078666,63557.0,63556.0,0.078665]
[1727282915526,0.16,63557.0,63556.0,0.078665]
[1727282916129,0.238666,63557.0,63556.0,0.078665]
[1727282916630,0.240666,63557.0,63556.0,0.078665]
[1727282919431,0.080666,63557.0,63556.0,0.078665]
[1727282919629,0.002,63557.0,63556.0,0.078665]
[1727282921225,0.078669,63554.0,63553.0,0.1420738]
[1727282921420,0.078671,63552.0,63551.0,0.0626048]
[1727282921730,0.238676,63550.0,63549.0,0.078675]
[1727282921936,0.078676,63548.0,63547.0,0.06255553]
[1727282922131,0.078676,63548.0,63547.0,0.078677]
[1727282922329,0.078676,63548.0,63545.0,0.06258996]
[1727282922527,0.16,63546.0,63544.0,0.14126996]
[1727282922732,0.07868,63545.0,63544.0,0.14126996]
[1727282923121,0.07868,63545.0,63544.0,0.07868]
[1727282924126,0.07968,63545.0,63544.0,0.07868]
[1727282924322,0.04031639,63545.0,63544.0,0.07868]
[1727282925240,0.04131639,63545.0,63544.0,0.2662169]
[1727282926229,0.04131639,63545.0,63544.0,0.18805022]
[1727282926425,0.04131639,63545.0,63544.0,0.18810575]
[1727282927227,0.04131639,63545.0,63544.0,0.28190577]
[1727282928336,0.002,63545.0,63544.0,0.18810575]
[1727282928638,0.002,63545.0,63544.0,0.3185901]
[1727282929641,0.002,63545.0,63544.0,0.3972711]
[1727282930536,0.002,63545.0,63544.0,0.41081362]
[1727282930729,0.002,63545.0,63544.0,0.4104985]
[1727282931140,0.3608,63553.0,63544.0,0.49179669]
[1727282931344,0.3608,63553.0,63552.0,0.078671]
[1727282931640,0.3608,63553.0,63552.0,0.18796724]
[1727282932843,0.3618,63553.0,63552.0,0.18796724]
[1727282933139,0.3628,63553.0,63552.0,0.18796724]
[1727282933535,0.3618,63553.0,63552.0,0.18796724]
[1727282933724,0.002,63553.0,63552.0,0.52075728]
[1727282933928,0.002,63553.0,63552.0,0.42663824]
[1727282934130,0.002,63553.0,63552.0,0.48470095]
[1727282936441,0.002,63553.0,63552.0,0.32470095]
[1727282938037,0.002,63553.0,63552.0,0.19466433]
[1727282938536,0.002,63553.0,63552.0,0.32460088]
[1727282938730,0.002,63553.0,63552.0,0.19466433]
[1727282938936,0.002,63553.0,63552.0,0.08536809]
[1727282939241,0.09618962,63553.0,63552.0,0.08536809]
[1727282939431,0.002,63553.0,63552.0,0.24536809]
[1727282939636,0.09619892,63553.0,63552.0,0.24536809]
[1727282941242,0.002,63553.0,63552.0,0.24536809]
[1727282942034,0.002,63553.0,63552.0,0.08536809]
[1727282942240,0.002,63553.0,63552.0,0.078671]
[1727282942241,0.08067,63553.0,63552.0,0.078671]
[1727282942546,0.002,63553.0,63552.0,0.078671]
[1727282943846,0.078674,63550.0,63549.0,0.078674]
[1727282945040,0.078674,63550.0,63549.0,0.079674]
[1727282945041,0.11820103,63550.0,63549.0,0.079674]
[1727282945236,0.11920103,63550.0,63549.0,0.001]
[1727282945647,0.19787503,63550.0,63549.0,0.001]
[1727282945946,0.5335499,63550.0,63549.0,0.001]
[1727282946345,0.3762019,63550.0,63545.0,0.06271117]
[1727282946544,0.078679,63546.0,63544.0,0.06271117]
[1727282946743,0.078679,63546.0,63543.0,0.06271117]
[1727282946744,0.078681,63544.0,63543.0,0.06271117]
[1727282947047,0.078682,63543.0,63542.0,0.14139517]
[1727282947559,0.077682,63543.0,63542.0,0.14139517]
[1727282948240,0.3608,63544.0,63542.0,0.14139517]
[1727282948241,0.3608,63544.0,63543.0,0.078682]
[1727282948440,0.3608,63544.0,63543.0,0.14139317]
[1727282948645,0.078681,63545.0,63544.0,0.078681]
[1727282948851,0.078681,63545.0,63544.0,0.14143167]
[1727282949539,0.078681,63545.0,63544.0,0.078681]
[1727282949949,0.0136104,63547.0,63546.0,0.078679]
[1727282950152,0.078677,63547.0,63546.0,0.078679]
[1727282950448,0.078679,63546.0,63545.0,0.06275067]
[1727282950958,0.16,63549.0,63543.0,0.3608]
[1727282950959,0.07868,63545.0,63544.0,0.06275067]
[1727282951141,0.07868,63545.0,63543.0,0.439482]
[1727282951452,0.078681,63544.0,63543.0,0.439482]
[1727282951946,0.599481,63544.0,63543.0,0.06276519]
[1727282952452,0.078682,63543.0,63542.0,0.06276519]
[1727282952953,0.5218,63544.0,63540.0,0.078685]
[1727282952954,0.078685,63541.0,63540.0,0.078685]
[1727282953445,0.078685,63541.0,63540.0,0.14144536]
[1727282953757,0.078685,63541.0,63538.0,0.06276036]
[1727282953758,0.078686,63540.0,63538.0,0.06276036]
[1727282953953,0.078686,63540.0,63532.0,0.078695]
[1727282953954,0.078696,63533.0,63532.0,0.078695]
[1727282954247,0.078696,63533.0,63529.0,0.06276036]
[1727282954248,0.078688,63539.0,63538.0,0.078687]
[1727282955050,0.10850275,63540.0,63539.0,0.078687]
[1727282955747,0.0951,63540.0,63536.0,0.06277369]
[1727282955950,0.078689,63538.0,63536.0,0.06277369]
[1727282956351,0.078689,63538.0,63535.0,0.06277369]
[1727282956547,0.078689,63538.0,63537.0,0.07869]
[1727282956853,0.001,63539.0,63538.0,0.078689]
[1727282957944,0.0961,63540.0,63538.0,0.078689]
[1727282958144,0.07869,63537.0,63535.0,0.06277369]
[1727282958452,0.078691,63537.0,63536.0,0.078691]
[1727282959750,0.079691,63537.0,63536.0,0.078691]
[1727282960850,0.080691,63537.0,63536.0,0.078691]
[1727282961444,0.002,63537.0,63536.0,0.078691]
[1727282962255,0.082378,63547.0,63546.0,0.078679]
[1727282962452,0.078678,63547.0,63546.0,0.078679]
[1727282962842,0.3608,63548.0,63543.0,0.078681]
[1727282963044,0.3608,63548.0,63539.0,0.42345446]
[1727282963045,0.078684,63542.0,63539.0,0.42345446]
[1727282963348,0.078684,63542.0,63541.0,0.078685]
[1727282964551,0.079684,63542.0,63541.0,0.078685]
[1727282964753,0.001,63542.0,63541.0,0.078685]
[1727282965553,0.002,63542.0,63541.0,0.15737]
[1727282965761,0.002,63542.0,63541.0,0.38002446]
[1727282965946,0.002,63542.0,63541.0,0.30133946]
[1727282966141,0.002,63542.0,63541.0,0.30233946]
[1727282967650,0.002,63542.0,63541.0,0.14233946]
[1727282968253,0.002,63542.0,63541.0,0.079685]
[1727282969266,0.078683,63543.0,63542.0,0.078684]
[1727282969470,0.078683,63543.0,63542.0,0.14140035]
[1727282970766,0.078683,63543.0,63542.0,0.078684]
[1727282970965,0.15737,63541.0,63540.0,0.06271635]
[1727282971159,0.15737,63541.0,63536.0,0.06271635]
[1727282971160,0.238685,63541.0,63536.0,0.06271635]
[1727282971475,0.078691,63536.0,63535.0,0.06271635]
[1727282971766,0.3608,63537.0,63533.0,0.00236083]
[1727282971767,0.078694,63534.0,63533.0,0.00236083]
[1727282971962,0.078694,63534.0,63533.0,0.08105583]
[1727282972665,0.078694,63534.0,63533.0,0.15944479]
[1727282972864,0.077694,63534.0,63533.0,0.08074979]
[1727282973053,0.077694,63534.0,63533.0,0.00236083]
[1727282973458,0.077694,63534.0,63533.0,0.08074979]
[1727282973760,0.078694,63534.0,63533.0,0.08274979]
[1727282974267,0.078694,63534.0,63533.0,0.00436083]
[1727282974459,0.078694,63534.0,63533.0,0.08274979]
[1727282974857,0.09248431,63534.0,63533.0,0.16144479]
[1727282975167,0.09248431,63534.0,63533.0,0.08305583]
[1727282975168,0.078694,63534.0,63533.0,0.08305583]
[1727282975664,0.078694,63534.0,63533.0,0.002]
[1727282975973,0.157388,63534.0,63533.0,0.002]
[1727282976166,0.078694,63534.0,63533.0,0.002]
[1727282976562,0.078694,63534.0,63533.0,0.06481638]
[1727282977070,0.078694,63534.0,63533.0,0.06481758]
[1727282977266,0.078694,63534.0,63533.0,0.002]
[1727282977459,0.157388,63534.0,63533.0,0.002]
[1727282978064,0.002,63534.0,63533.0,0.15939]
[1727282978259,0.002,63534.0,63533.0,0.19040742]
[1727282978659,0.002,63534.0,63533.0,0.28447418]
[1727282978861,0.002,63534.0,63533.0,0.36316918]
[1727282979076,0.002,63534.0,63533.0,0.26910242]
[1727282979670,0.002,63534.0,63533.0,0.3996272]
[1727282980457,0.002,63534.0,63533.0,0.41328621]
[1727282983363,0.002,63534.0,63533.0,0.28276143]
[1727282984367,0.002,63534.0,63533.0,0.41328221]
[1727282985077,0.002,63534.0,63533.0,0.49197721]
[1727282985374,0.002,63534.0,63533.0,1.66774508]
[1727282985566,0.0037,63542.0,63541.0,0.078685]
[1727282985767,0.0623,63546.0,63545.0,0.07868]
[1727282987568,0.0633,63546.0,63545.0,0.07868]
[1727282987966,0.0643,63546.0,63545.0,0.07868]
[1727282988162,0.002,63546.0,63545.0,0.07868]
[1727282988365,0.002,63546.0,63545.0,0.23868]
[1727282988675,0.002,63546.0,63545.0,0.31714633]
[1727282988868,0.002,63546.0,63545.0,0.42631169]
[1727282989270,0.002,63546.0,63545.0,0.15714633]
[1727282989474,0.002,63546.0,63545.0,0.07868]
[1727282989970,0.080679,63546.0,63545.0,0.07868]
[1727282990873,0.080679,63546.0,63543.0,0.07846633]
[1727282990874,0.078681,63544.0,63543.0,0.078682]
[1727282991076,0.078681,63544.0,63539.0,0.3608]
[1727282991077,0.078684,63542.0,63541.0,0.15715133]
[1727282991263,0.078686,63540.0,63539.0,0.07846633]
[1727282991577,0.078687,63539.0,63538.0,0.07846633]
[1727282991778,0.078687,63539.0,63530.0,0.00606107]
[1727282991779,0.078689,63538.0,63537.0,0.07846633]
[1727282991976,0.078689,63538.0,63537.0,0.18798284]
[1727282992181,0.078689,63538.0,63537.0,0.18797755]
[1727282992480,0.078689,63538.0,63537.0,0.10951651]
[1727282993176,0.079689,63538.0,63537.0,0.10951651]
[1727282993771,0.080689,63538.0,63537.0,0.10951651]
[1727282993973,0.080689,63538.0,63537.0,0.0627815]
[1727282994171,0.080689,63538.0,63534.0,0.07846239]
[1727282994172,0.078691,63536.0,63535.0,0.0627815]
[1727282994479,0.078692,63535.0,63534.0,0.0627815]
[1727282995577,0.078694,63534.0,63533.0,0.078695]
[1727282995878,0.002,63536.0,63535.0,0.078692]
[1727282995879,0.001,63536.0,63535.0,0.078692]
[1727282996380,0.078691,63537.0,63532.0,0.07846239]
[1727282996572,0.078691,63537.0,63536.0,0.06279412]
[1727282996881,0.033,63539.0,63537.0,0.078689]
[1727282997173,0.033,63539.0,63537.0,0.22278939]
[1727282997773,0.111687,63539.0,63538.0,0.078689]
[1727282998778,0.033,63539.0,63538.0,0.078689]
[1727282998969,0.36244,63540.0,63539.0,0.078687]
[1727282999167,0.031,63541.0,63540.0,0.078686]
[1727282999770,0.04593235,63550.0,63538.0,0.3608]
[1727282999971,0.04593235,63550.0,63545.0,0.3608]
[1727283000171,0.0322,63550.0,63545.0,0.3608]
[1727283000475,0.078679,63546.0,63545.0,0.3608]
[1727283000677,0.078679,63546.0,63545.0,0.43948]
[1727283001878,0.0332,63550.0,63549.0,0.078675]
[1727283002079,0.001,63550.0,63549.0,0.238675]
[1727283002965,0.078667,63556.0,63549.0,0.16]
[1727283003176,0.078667,63556.0,63555.0,0.078668]
[1727283003382,0.142865,63557.0,63556.0,0.078666]
[1727283003869,0.0642,63557.0,63556.0,0.078666]
[1727283004370,0.078658,63563.0,63560.0,0.078661]
[1727283004683,0.078656,63565.0,63561.0,0.07866]
[1727283004883,0.078657,63564.0,63561.0,0.07866]
[1727283005077,0.09425565,63566.0,63561.0,0.07866]
[1727283005287,0.07866,63562.0,63559.0,0.16]
[1727283005791,0.07866,63562.0,63558.0,0.078664]
[1727283005983,0.07866,63561.0,63558.0,0.078664]
[1727283006186,0.07866,63561.0,63559.0,0.3608]
[1727283006481,0.07866,63562.0,63559.0,0.3608]
[1727283006672,0.001,63562.0,63561.0,0.07866]
[1727283006873,0.002,63562.0,63561.0,0.07866]
[1727283007069,0.078661,63561.0,63559.0,0.4865473]
[1727283007267,0.078661,63561.0,63560.0,0.078661]
[1727283007476,0.002,63562.0,63561.0,0.07866]
[1727283008273,0.001,63562.0,63561.0,0.07866]
[1727283008478,0.078658,63563.0,63561.0,0.08166]
[1727283008982,0.001,63562.0,63561.0,0.08166]
[1727283009182,0.001,63562.0,63561.0,0.1287443]
[1727283009374,0.001,63562.0,63561.0,0.08166]
[1727283009678,0.078653,63567.0,63565.0,0.078655]
[1727283009879,0.095,63568.0,63567.0,0.078653]
[1727283010469,0.078653,63567.0,63566.0,0.3608]
[1727283011779,0.079653,63567.0,63566.0,0.3608]
[1727283012287,0.079653,63567.0,63566.0,0.3628]
[1727283014272,0.16645104,63567.0,63566.0,0.3628]
[1727283014686,0.16645104,63567.0,63566.0,0.441454]
[1727283015686,0.16645104,63567.0,63566.0,0.3628]
[1727283015875,0.16645104,63567.0,63566.0,0.441454]
[1727283016276,0.08779804,63567.0,63566.0,0.441454]
[1727283019378,0.08779804,63567.0,63566.0,0.520108]
[1727283019583,0.08779804,63567.0,63566.0,0.52195418]
[1727283020281,0.08779804,63567.0,63566.0,0.2701798]
[1727283021289,0.08779804,63567.0,63566.0,0.34698762]
[1727283022290,0.07865,63570.0,63569.0,0.07865]
[1727283024692,0.08065,63570.0,63569.0,0.07865]
[1727283026195,0.08065,63570.0,63566.0,0.26833362]
[1727283026196,0.078653,63567.0,63566.0,0.26833362]
[1727283027487,0.078653,63567.0,63566.0,0.31530961]
[1727283027488,0.079653,63567.0,63566.0,0.31530961]
[1727283028190,0.079653,63567.0,63566.0,0.40777599]
[1727283028495,0.079653,63567.0,63566.0,0.3608]
[1727283028803,0.079653,63567.0,63566.0,0.3638]
[1727283029187,0.11816884,63567.0,63566.0,0.3638]
[1727283029793,0.11816884,63567.0,63566.0,0.442454]
[1727283030491,0.11816884,63567.0,63566.0,0.3638]
[1727283031392,0.03951584,63567.0,63566.0,0.442454]
[1727283031694,0.03951306,63567.0,63566.0,0.442454]
[1727283031892,0.0395128,63567.0,63566.0,0.442454]
[1727283032487,0.16470118,63567.0,63566.0,0.442454]
[1727283033094,0.24335418,63567.0,63566.0,0.442454]
[1727283033991,0.1181658,63567.0,63566.0,0.442454]
[1727283035397,0.1181658,63567.0,63566.0,0.3638]
[1727283035806,0.1968188,63567.0,63566.0,0.3638]
[1727283035992,0.38593266,63567.0,63566.0,0.003]
[1727283036192,0.24509573,63567.0,63566.0,0.003]
[1727283036699,0.24510341,63567.0,63566.0,0.003]
[1727283036997,0.16645041,63567.0,63566.0,0.003]
[1727283037199,0.079653,63567.0,63566.0,0.081654]
[1727283038491,0.001,63567.0,63566.0,0.081654]
[1727283038692,0.001,63567.0,63566.0,0.09531452]
[1727283039705,0.001,63567.0,63566.0,1.11681177]
[1727283040004,0.0037,63575.0,63574.0,0.078644]
[1727283040202,0.09234725,63580.0,63577.0,0.07864]
[1727283040412,0.078638,63580.0,63579.0,0.16]
[1727283040905,0.078638,63580.0,63579.0,0.238638]
[1727283041300,0.01619653,63581.0,63579.0,0.16]
[1727283041501,0.01619653,63581.0,63580.0,0.14133347]
[1727283041705,0.08099505,63581.0,63580.0,0.439437]
[1727283041895,0.08099505,63581.0,63580.0,0.50213347]
[1727283042102,0.00236005,63581.0,63580.0,0.50213347]
[1727283042297,0.00236005,63581.0,63580.0,0.439437]
[1727283043105,0.00236005,63581.0,63580.0,0.6271522]
[1727283043315,0.00236005,63581.0,63580.0,0.51783237]
[1727283043503,0.01236005,63581.0,63580.0,0.439437]
[1727283043702,0.01236005,63581.0,63580.0,0.440437]
[1727283043703,0.02436005,63581.0,63580.0,0.440437]
[1727283044103,0.01936005,63581.0,63580.0,0.440437]
[1727283044709,0.01936005,63581.0,63580.0,0.4540173]
[1727283045009,0.00736005,63581.0,63580.0,0.4530173]
[1727283045215,0.01536005,63581.0,63580.0,0.4540173]
[1727283046607,0.01536005,63581.0,63580.0,0.50302516]
[1727283046918,0.09399505,63581.0,63580.0,0.3618]
[1727283047415,0.01536005,63581.0,63580.0,0.440437]
[1727283048111,0.09399505,63581.0,63580.0,0.3618]
[1727283049714,0.08099505,63581.0,63580.0,0.3608]
[1727283049907,0.08299505,63581.0,63580.0,0.439437]
[1727283050102,0.08299505,63581.0,63580.0,0.3608]
[1727283050304,0.08399505,63581.0,63580.0,0.3608]
[1727283050499,0.08199505,63581.0,63580.0,0.3608]
[1727283050705,0.08199505,63581.0,63580.0,0.3628]
[1727283050917,0.08099505,63581.0,63580.0,0.3628]
[1727283051212,0.22416541,63581.0,63580.0,0.3628]
[1727283051507,0.22416541,63581.0,63580.0,0.001]
[1727283051715,0.22416541,63581.0,63580.0,0.079637]
[1727283052416,0.42806526,63581.0,63580.0,0.079637]
[1727283052603,0.22516541,63581.0,63580.0,0.079637]
[1727283052809,0.42906121,63581.0,63580.0,0.079637]
[1727283053010,0.43106121,63581.0,63580.0,0.078637]
[1727283053804,0.42906121,63581.0,63580.0,0.078637]
[1727283054617,0.42806121,63581.0,63580.0,0.078637]
[1727283055705,0.22416541,63581.0,63580.0,0.078637]
[1727283055901,0.42805714,63581.0,63580.0,0.078637]
[1727283056317,0.22416541,63581.0,63580.0,0.078637]
[1727283056615,0.42806347,63581.0,63580.0,0.078637]
[1727283057108,0.42906347,63581.0,63580.0,0.078637]
[1727283057310,0.43006347,63581.0,63580.0,0.078637]
[1727283057807,0.42906347,63581.0,63580.0,0.078637]
[1727283058022,0.42906347,63581.0,63580.0,0.0501502]
[1727283058217,0.22516541,63581.0,63580.0,0.0501502]
[1727283059017,0.29404898,63581.0,63580.0,0.4109502]
[1727283059218,0.00336005,63581.0,63580.0,0.4895872]
[1727283059609,0.00236005,63581.0,63580.0,0.4895872]
[1727283059921,0.00436005,63581.0,63580.0,0.4109502]
[1727283060515,0.00236005,63581.0,63580.0,0.4119502]
[1727283062218,0.00236005,63581.0,63580.0,0.4905872]
[1727283062623,0.08099505,63581.0,63580.0,0.60060031]
[1727283062825,0.08099505,63581.0,63580.0,0.5719502]
[1727283063223,0.078635,63581.0,63580.0,0.5719502]
[1727283063414,0.078635,63581.0,63580.0,0.3618]